{"text_format":"1","workbook":"xlsx","n_sheets":3,"sheets":["AIDE","Inscription","DATA-INFO"],"not_rendered":{"charts":0,"images":2,"macros":1,"external_links":0,"defined_names":9,"comments":1,"pivot_tables":0},"unopened":[],"bounds":{"document_bytes":16777216,"sheet_cells":100000,"rows_first":2000,"rows_last":500,"rows_between":2000,"halvings":0,"cell_chars":16384,"cell_head_chars":4096},"cells_cut":0,"cells_raw":0,"read":"whole","date_system":"1900"}

{"sheet":"AIDE","index":0,"n_rows":17,"n_cols":11,"rows_kept":17,"cut":false,"hidden":false,"merged":[[2,10,15,16]]}
[]
[]
[null,null,null,null,null,null,null,null,null,null,"\nAfin de vous aider lors de la saisie, il a été intégré des fonctions et informations d'aide à la saisie, dont voici les principales descriptions\n\nAttention, ne pas ajouter/supprimer modifier l'ordre des colonnes sous peine d'inscription erronnée"]
[]
[]
[]
[]
[]
[]
[]
[]
[]
[]
[]
[]
[]
[null,"Informations à connaître lors de la saisie de l'onglet technique et combat"]

{"sheet":"Inscription","index":1,"n_rows":67,"n_cols":105,"rows_kept":67,"cut":false,"hidden":false,"merged":[[6,17,7,21],[6,2,8,3],[6,55,7,55],[6,53,7,53],[6,23,7,33],[6,43,7,45],[6,37,7,41],[2,47,3,57],[4,47,5,57],[2,23,3,33],[5,19,5,21],[4,35,5,35],[4,23,5,33],[2,43,3,45],[4,43,4,45],[2,17,3,21],[5,37,5,38],[5,43,5,44],[4,17,4,21],[1,6,1,8],[2,6,2,8],[1,2,3,3],[6,10,7,15],[5,10,5,12],[1,12,1,15],[4,10,4,15],[2,12,2,15],[5,13,5,15],[1,10,1,11],[7,4,8,8],[3,6,3,8],[5,2,5,3],[4,2,4,3],[6,4,6,8]]}
[]
[null,null," CHAMPIONNAT DE FRANCE  TECHNIQUE VOVINAM \nMinimes, Cadets, Juniors, \nSeniors, Vétérans\n ",null,null,"N° club  : ",null,null,null,null,"Nom du  _\nresponsable : "]
[null,null,null,null,null,"Ville : ",null,null,null,null,null,"Tél :  ",null,null,null,null,null,"Indiquer le n° de l'équipe constituée ex :  1",null,null,null,null,null,"Indiquer le n° de l'équipe constituée ex :  1",null,null,null,null,null,null,null,null,null,null,null,null,null,null,null,null,null,null,null,"Indiquer le n° de l'équipe constituée ex :  1",null,null,null,"Indiquer le n° de l'équipe constituée ex :  1"]
[null,null,null,null,null,"Mail : "]
[null,null,"2023-04-01",null,null,null,null,null,null,null,"Quyen : Indiquer un X dans la case",null,null,null,null,null,null,"Song luyen",null,null,null,null,null,"Da luyen, Tu Vé, Don chan, \n quyen à 3 et Dong Doi",null,null,null,null,null,null,null,null,null,null,null,"Combat",null,"Quyen : Indiquer un X dans la case",null,null,null,null,null,"Song luyen",null,null,null,"Da luyen, Tu Vé, Don chan, \n quyen à 3 et Dong Doi"]
[null,null,"Tableau d'inscription",null,"Remarque : Indiquer le N° d'équipe au niveau des Song Luyen, Da luyen, Tu Ve Nu  Gioi et Don Chan et dong doi : N° identique pour chaque membre de l'équipe",null,null,null,null,null,"Mains nues",null,null,"Avec arme",null,null,null,"Mains nues",null,"Avec arme",null,null,null,null,null,null,null,null,null,null,null,null,null,null,null,null,null,"Mains nues",null,"Avec arme",null,null,null,"Mains nues",null,"Avec arme"]
[null,null,"Cellule sur fond gris : épreuve incompatible avec la catégorie ou le sexe",null," M : catégorie masculine,      F : catégorie féminine  ",null,null,null,null,null,"Masculin",null,null,null,null,null,null,"Masculin",null,null,null,null,null,"Masculin",null,null,null,null,null,null,null,null,null,null,null,"F",null,"Féminin",null,null,null,null,null,"Féminin",null,null,null,"F",null,"F",null,"F",null,"Féminin",null,"Féminin",null,"F"]
[null,null,null,null,"M : MINIME, C : CADET,  J : JUNIOR,  \nS : SENIOR,   V : VETERAN  ",null,null,null,null,null,null,null,null,null,null,null,null,null,null,null,null,null,null,null,null,null,null,null,null,null,null,null,null,null,null,"M",null,null,null,null,null,null,null,null,null,null,null,"Adv. Mas.",null,"Adv. Mas.",null,"Adv. Mas.",null,null,null,null,null,"Adv. Mas."]
[null,null,null,null,null,null,null,null,null,null,"M","C","J S V","M C","J S V","J S V",null,"M C",null,"C","J S V","J S V",null,"M C J S V",null,"J S V",null,"C J S V",null,"M C",null,"J S V",null,"J S V",null,"C J S V",null,"M C","J S V","J S V","M C J S V","J S V",null,"M C","J S V","J S V",null,"J S V",null,"J S V",null,"M C J S V",null,"M C J S V",null," J S V",null,"J S V",null,"M","C","J S V","M C","J S V","J S V",null,"M C",null,"C","J S V","J S V",null,"M C J S V",null,"J S V",null,"C J S V",null,"M C",null,"J S V",null,"J S V",null,"M C","J S V","J S V","M C J S V","J S V",null,"M C","J S V","J S V",null,"J S V",null,"J S V",null,"M C J S V",null,"M C J S V",null," J S V",null,"J S V"]
["Club","Ville","NOM","PRENOM","SEXE\nF \nou \nM","Année  naissance\n\n(XXXX)","N° licence FFKDA","Poids","Indication catégorie",null,"Thap Tu Quyen ET Long ho quyen","Ngu môn quyen ET Long ho quyen","Thâp thê bát thûc quyen ET Ngu môn quyen OU Long ho quyen","Tinh hoa luông nghi kiêm pháp","Tinh hoa luông nghi kiêm pháp ET Tu tuông côn pháp","Nhat nguyet dai dao phap",null,"Song luyên môt",null,"Song luyên dao ","Song luyên ba - 21ème ciseau ET Song luyên kiêm ","Song luyên dao  ET Song Luyên ma tau",null,"Da luyên\n  SANS  ARME\n  - 4 hommes",null,"Da luyên\n  AVEC ARME\n  - 4 hommes",null,"Dòn chân\n  - 4 hommes",null,"Quyen dong doi nam\nThap tu quyen à 3\n",null,"Quyen dong doi nam\nLong ho quyen à 3\n",null,"Dong Doi Ky Thuat Can Ban Nam\n  - 6 hommes",null,"Combat",null,"Thap Tu Quyen ET Long ho quyen","Long ho quyen","Song dao pháp","Tinh hoa luông nghi kiêm pháp","Thai cuc  don dao phap",null,"Song luyên môt ","Song Luyen 3","Song luyên kiêm ",null,"Da luyên\n SANS ARME                                      - 1 fille contre\n3 hommes\n",null,"Da luyên\n AVEC ARME                                      - 1 fille contre\n3 hommes\n",null,"Tu vé nu gioi\n1 fille contre\n1 homme",null,"Quyen dong doi nu\nThap tu quyen à 3",null,"Dong Doi Ky Thuat Can Ban Nu\n- 6 filles",null,"Dong Doi Ky Thuat Can Ban Hon Hop\n - 3 filles\n3 hommes",null,"Thap Tu Quyen ET Long ho quyen","Ngu môn quyen ET Long ho quyen","Thâp thê bát thûc quyen ET Ngu môn quyen OU Long ho quyen","Tinh hoa luông nghi kiêm pháp","Tinh hoa luông nghi kiêm pháp ET Tu tuông côn pháp","Nhat nguyet dai dao phap",null,"Song luyên môt",null,"Song luyên dao ","Song luyên ba - 21ème ciseau ET Song luyên kiêm ","Song luyên dao  ET Song Luyên ma tau",null,"Da luyên\n  SANS  ARME\n  - 4 hommes",null,"Da luyên\n  AVEC ARME\n  - 4 hommes",null,"Dòn chân\n  - 4 hommes",null,"Quyen dong doi nam\nThap tu quyen à 3\n",null,"Quyen dong doi nam\nLong ho quyen à 3\n",null,"Dong Doi Ky Thuat Can Ban Nam\n  - 6 hommes",null,"Thap Tu Quyen ET Long ho quyen","Long ho quyen","Song dao pháp","Tinh hoa luông nghi kiêm pháp","Thai cuc  don dao phap",null,"Song luyên môt ","Song Luyen 3","Song luyên kiêm ",null,"Da luyên\n SANS ARME                                      - 1 fille contre\n3 hommes\n",null,"Da luyên\n AVEC ARME                                      - 1 fille contre\n3 hommes\n",null,"Tu vé nu gioi\n1 fille contre\n1 homme",null,"Quyen dong doi nu\nThap tu quyen à 3",null,"Dong Doi Ky Thuat Can Ban Nu\n- 6 filles",null,"Dong Doi Ky Thuat Can Ban Hon Hop\n - 3 filles\n3 hommes"]
[{"$f":"$G$2","v":0},{"$f":"$G$3","v":0},"GRANDIN -EXEMPLE","Patrick","M",2009,"12345678Y",null,{"$f":"IFERROR(VLOOKUP(F11,choix_categorie,2,FALSE),\"\")","v":"MINIME"},null,"X",null,null,null,null,null,null,null,null,null,null,null,null,null,null,null,null,null,null,null,null,null,null,null,null,null,null,null,null,null,null,null,null,null,null,null,null,null,null,null,null,null,null,null,null,null,null,null,null,{"$f":"IF(ISERROR(SEARCH(LEFT($I11,1),K$9,1)),0,IF($I11<>\"\",1,\"\"))","v":1},{"$f":"IF(ISERROR(SEARCH(LEFT($I11,1),L$9,1)),0,IF($I11<>\"\",1,\"\"))","v":0},{"$f":"IF(ISERROR(SEARCH(LEFT($I11,1),M$9,1)),0,IF($I11<>\"\",1,\"\"))","v":0},1,0,0,null,{"$f":"IF(ISERROR(SEARCH(LEFT($I11,1),R$9,1)),0,IF($I11<>\"\",1,\"\"))","v":1},{"$f":"IF(ISERROR(SEARCH(LEFT($I11,1),S$9,1)),0,IF($I11<>\"\",1,\"\"))","v":0},{"$f":"IF(ISERROR(SEARCH(LEFT($I11,1),T$9,1)),0,IF($I11<>\"\",1,\"\"))","v":0},{"$f":"IF(ISERROR(SEARCH(LEFT($I11,1),U$9,1)),0,IF($I11<>\"\",1,\"\"))","v":0},{"$f":"IF(ISERROR(SEARCH(LEFT($I11,1),V$9,1)),0,IF($I11<>\"\",1,\"\"))","v":0},null,{"$f":"IF(ISERROR(SEARCH(LEFT($I11,1),X$9,1)),0,IF($I11<>\"\",1,\"\"))","v":1},null,{"$f":"IF(ISERROR(SEARCH(LEFT($I11,1),Z$9,1)),0,IF($I11<>\"\",1,\"\"))","v":0},null,{"$f":"IF(ISERROR(SEARCH(LEFT($I11,1),AB$9,1)),0,IF($I11<>\"\",1,\"\"))","v":0},null,{"$f":"IF(ISERROR(SEARCH(LEFT($I11,1),AD$9,1)),0,IF($I11<>\"\",1,\"\"))","v":1},null,{"$f":"IF(ISERROR(SEARCH(LEFT($I11,1),AF$9,1)),0,IF($I11<>\"\",1,\"\"))","v":0},null,{"$f":"IF(ISERROR(SEARCH(LEFT($I11,1),AH$9,1)),0,IF($I11<>\"\",1,\"\"))","v":0},null,{"$f":"IF(ISERROR(SEARCH(LEFT($I11,1),AL$9,1)),0,IF($I11<>\"\",1,\"\"))","v":1},{"$f":"IF(ISERROR(SEARCH(LEFT($I11,1),AM$9,1)),0,IF($I11<>\"\",1,\"\"))","v":0},{"$f":"IF(ISERROR(SEARCH(LEFT($I11,1),AN$9,1)),0,IF($I11<>\"\",1,\"\"))","v":0},{"$f":"IF(ISERROR(SEARCH(LEFT($I11,1),AO$9,1)),0,IF($I11<>\"\",1,\"\"))","v":1},{"$f":"IF(ISERROR(SEARCH(LEFT($I11,1),AP$9,1)),0,IF($I11<>\"\",1,\"\"))","v":0},null,{"$f":"IF(ISERROR(SEARCH(LEFT($I11,1),AR$9,1)),0,IF($I11<>\"\",1,\"\"))","v":1},{"$f":"IF(ISERROR(SEARCH(LEFT($I11,1),AS$9,1)),0,IF($I11<>\"\",1,\"\"))","v":0},{"$f":"IF(ISERROR(SEARCH(LEFT($I11,1),AT$9,1)),0,IF($I11<>\"\",1,\"\"))","v":0},null,{"$f":"IF(ISERROR(SEARCH(LEFT($I11,1),AV$9,1)),0,IF($I11<>\"\",1,\"\"))","v":0},null,{"$f":"IF(ISERROR(SEARCH(LEFT($I11,1),AX$9,1)),0,IF($I11<>\"\",1,\"\"))","v":0},null,{"$f":"IF(ISERROR(SEARCH(LEFT($I11,1),AZ$9,1)),0,IF($I11<>\"\",1,\"\"))","v":1},null,{"$f":"IF(ISERROR(SEARCH(LEFT($I11,1),BB$9,1)),0,IF($I11<>\"\",1,\"\"))","v":1},null,{"$f":"IF(ISERROR(SEARCH(LEFT($I11,1),BD$9,1)),0,IF($I11<>\"\",1,\"\"))","v":0},null,{"$f":"IF(ISERROR(SEARCH(LEFT($I11,1),BF$9,1)),0,IF($I11<>\"\",1,\"\"))","v":0}]
[0,0,"PHILIPS-EXEMPLE","Bernard","M",1999,"12345678Y",null,"SENIOR",null,null,null,"X",null,"X",null,null,null,null,null,1,null,null,1,null,null,null,null,null,null,null,null,null,null,null,null,null,null,null,null,null,null,null,null,null,null,null,1,null,1,null,1,null,null,null,null,null,null,null,{"$f":"IF(ISERROR(SEARCH(LEFT($I12,1),K$9,1)),0,IF($I12<>\"\",1,\"\"))","v":0},{"$f":"IF(ISERROR(SEARCH(LEFT($I12,1),L$9,1)),0,IF($I12<>\"\",1,\"\"))","v":0},{"$f":"IF(ISERROR(SEARCH(LEFT($I12,1),M$9,1)),0,IF($I12<>\"\",1,\"\"))","v":1},{"$f":"IF(ISERROR(SEARCH(LEFT($I12,1),N$9,1)),0,IF($I12<>\"\",1,\"\"))","v":0},{"$f":"IF(ISERROR(SEARCH(LEFT($I12,1),O$9,1)),0,IF($I12<>\"\",1,\"\"))","v":1},{"$f":"IF(ISERROR(SEARCH(LEFT($I12,1),P$9,1)),0,IF($I12<>\"\",1,\"\"))","v":1},null,{"$f":"IF(ISERROR(SEARCH(LEFT($I12,1),R$9,1)),0,IF($I12<>\"\",1,\"\"))","v":0},{"$f":"IF(ISERROR(SEARCH(LEFT($I12,1),S$9,1)),0,IF($I12<>\"\",1,\"\"))","v":0},{"$f":"IF(ISERROR(SEARCH(LEFT($I12,1),T$9,1)),0,IF($I12<>\"\",1,\"\"))","v":0},{"$f":"IF(ISERROR(SEARCH(LEFT($I12,1),U$9,1)),0,IF($I12<>\"\",1,\"\"))","v":1},{"$f":"IF(ISERROR(SEARCH(LEFT($I12,1),V$9,1)),0,IF($I12<>\"\",1,\"\"))","v":1},null,{"$f":"IF(ISERROR(SEARCH(LEFT($I12,1),X$9,1)),0,IF($I12<>\"\",1,\"\"))","v":1},null,{"$f":"IF(ISERROR(SEARCH(LEFT($I12,1),Z$9,1)),0,IF($I12<>\"\",1,\"\"))","v":1},null,{"$f":"IF(ISERROR(SEARCH(LEFT($I12,1),AB$9,1)),0,IF($I12<>\"\",1,\"\"))","v":1},null,{"$f":"IF(ISERROR(SEARCH(LEFT($I12,1),AD$9,1)),0,IF($I12<>\"\",1,\"\"))","v":0},null,{"$f":"IF(ISERROR(SEARCH(LEFT($I12,1),AF$9,1)),0,IF($I12<>\"\",1,\"\"))","v":1},null,{"$f":"IF(ISERROR(SEARCH(LEFT($I12,1),AH$9,1)),0,IF($I12<>\"\",1,\"\"))","v":1},null,{"$f":"IF(ISERROR(SEARCH(LEFT($I12,1),AL$9,1)),0,IF($I12<>\"\",1,\"\"))","v":0},{"$f":"IF(ISERROR(SEARCH(LEFT($I12,1),AM$9,1)),0,IF($I12<>\"\",1,\"\"))","v":1},{"$f":"IF(ISERROR(SEARCH(LEFT($I12,1),AN$9,1)),0,IF($I12<>\"\",1,\"\"))","v":1},{"$f":"IF(ISERROR(SEARCH(LEFT($I12,1),AO$9,1)),0,IF($I12<>\"\",1,\"\"))","v":1},{"$f":"IF(ISERROR(SEARCH(LEFT($I12,1),AP$9,1)),0,IF($I12<>\"\",1,\"\"))","v":1},null,{"$f":"IF(ISERROR(SEARCH(LEFT($I12,1),AR$9,1)),0,IF($I12<>\"\",1,\"\"))","v":0},{"$f":"IF(ISERROR(SEARCH(LEFT($I12,1),AS$9,1)),0,IF($I12<>\"\",1,\"\"))","v":1},{"$f":"IF(ISERROR(SEARCH(LEFT($I12,1),AT$9,1)),0,IF($I12<>\"\",1,\"\"))","v":1},null,{"$f":"IF(ISERROR(SEARCH(LEFT($I12,1),AV$9,1)),0,IF($I12<>\"\",1,\"\"))","v":1},null,{"$f":"IF(ISERROR(SEARCH(LEFT($I12,1),AX$9,1)),0,IF($I12<>\"\",1,\"\"))","v":1},null,{"$f":"IF(ISERROR(SEARCH(LEFT($I12,1),AZ$9,1)),0,IF($I12<>\"\",1,\"\"))","v":1},null,{"$f":"IF(ISERROR(SEARCH(LEFT($I12,1),BB$9,1)),0,IF($I12<>\"\",1,\"\"))","v":1},null,{"$f":"IF(ISERROR(SEARCH(LEFT($I12,1),BD$9,1)),0,IF($I12<>\"\",1,\"\"))","v":1},null,{"$f":"IF(ISERROR(SEARCH(LEFT($I12,1),BF$9,1)),0,IF($I12<>\"\",1,\"\"))","v":1}]
[0,0,"MARTIN - EXEMPLE","Pascal","M",1975,"12345678Y",null,"VETERAN",null,null,null,"X",null,"X","X",null,null,null,null,1,null,null,1,null,null,null,null,null,null,null,null,null,null,null,null,null,null,null,null,null,null,null,null,null,null,null,1,null,null,null,null,null,null,null,null,null,null,null,0,0,1,0,1,1,null,0,0,0,1,1,null,1,null,1,null,1,null,0,null,1,null,1,null,0,1,1,1,1,null,0,1,1,null,1,null,1,null,1,null,1,null,1,null,1]
[0,0,"DUBOIS - EXEMPLE","Géraldine","F",2000,"12345678Y",null,"SENIOR",null,null,null,null,null,null,null,null,null,null,null,null,null,null,null,null,null,null,null,null,null,null,null,null,null,null,null,null,null,null,"X","X",null,null,null,null,1,null,1,null,1,null,1,null,null,null,null,null,null,null,0,0,1,0,1,1,null,{"$f":"IF(ISERROR(SEARCH(LEFT($I14,1),R$9,1)),0,IF($I14<>\"\",1,\"\"))","v":0},{"$f":"IF(ISERROR(SEARCH(LEFT($I14,1),S$9,1)),0,IF($I14<>\"\",1,\"\"))","v":0},0,1,1,null,1,null,1,null,1,null,0,null,1,null,1,null,0,1,1,1,1,null,0,1,1,null,1,null,1,null,1,null,1,null,1,null,1]
[0,0,null,null,null,null,null,null,"",null,null,null,null,null,null,null,null,null,null,null,null,null,null,null,null,null,null,null,null,null,null,null,null,null,null,null,null,null,null,null,null,null,null,null,null,null,null,null,null,null,null,null,null,null,null,null,null,null,null,"","","","","","",null,"",0,"","","",null,"",null,"",null,"",null,"",null,"",null,"",null,"","","","","",null,"","","",null,"",null,"",null,"",null,"",null,"",null,""]
[0,0,null,null,null,null,null,null,"",null,null,null,null,null,null,null,null,null,null,null,null,null,null,null,null,null,null,null,null,null,null,null,null,null,null,null,null,null,null,null,null,null,null,null,null,null,null,null,null,null,null,null,null,null,null,null,null,null,null,"","","","","","",null,"",0,"","","",null,"",null,"",null,"",null,"",null,"",null,"",null,"","","","","",null,"","","",null,"",null,"",null,"",null,"",null,"",null,""]
[0,0,null,null,null,null,null,null,"",null,null,null,null,null,null,null,null,null,null,null,null,null,null,null,null,null,null,null,null,null,null,null,null,null,null,null,null,null,null,null,null,null,null,null,null,null,null,null,null,null,null,null,null,null,null,null,null,null,null,"","","","","","",null,"",0,"","","",null,"",null,"",null,"",null,"",null,"",null,"",null,"","","","","",null,"","","",null,"",null,"",null,"",null,"",null,"",null,""]
[0,0,null,null,null,null,null,null,"",null,null,null,null,null,null,null,null,null,null,null,null,null,null,null,null,null,null,null,null,null,null,null,null,null,null,null,null,null,null,null,null,null,null,null,null,null,null,null,null,null,null,null,null,null,null,null,null,null,null,"","","","","","",null,"",0,"","","",null,"",null,"",null,"",null,"",null,"",null,"",null,"","","","","",null,"","","",null,"",null,"",null,"",null,"",null,"",null,""]
[0,0,null,null,null,null,null,null,"",null,null,null,null,null,null,null,null,null,null,null,null,null,null,null,null,null,null,null,null,null,null,null,null,null,null,null,null,null,null,null,null,null,null,null,null,null,null,null,null,null,null,null,null,null,null,null,null,null,null,"","","","","","",null,"",0,"","","",null,"",null,"",null,"",null,"",null,"",null,"",null,"","","","","",null,"","","",null,"",null,"",null,"",null,"",null,"",null,""]
[0,0,null,null,null,null,null,null,"",null,null,null,null,null,null,null,null,null,null,null,null,null,null,null,null,null,null,null,null,null,null,null,null,null,null,null,null,null,null,null,null,null,null,null,null,null,null,null,null,null,null,null,null,null,null,null,null,null,null,"","","","","","",null,"",0,"","","",null,"",null,"",null,"",null,"",null,"",null,"",null,"","","","","",null,"","","",null,"",null,"",null,"",null,"",null,"",null,""]
[0,0,null,null,null,null,null,null,"",null,null,null,null,null,null,null,null,null,null,null,null,null,null,null,null,null,null,null,null,null,null,null,null,null,null,null,null,null,null,null,null,null,null,null,null,null,null,null,null,null,null,null,null,null,null,null,null,null,null,"","","","","","",null,"",0,"","","",null,"",null,"",null,"",null,"",null,"",null,"",null,"","","","","",null,"","","",null,"",null,"",null,"",null,"",null,"",null,""]
[0,0,null,null,null,null,null,null,"",null,null,null,null,null,null,null,null,null,null,null,null,null,null,null,null,null,null,null,null,null,null,null,null,null,null,null,null,null,null,null,null,null,null,null,null,null,null,null,null,null,null,null,null,null,null,null,null,null,null,"","","","","","",null,"",0,"","","",null,"",null,"",null,"",null,"",null,"",null,"",null,"","","","","",null,"","","",null,"",null,"",null,"",null,"",null,"",null,""]
[0,0,null,null,null,null,null,null,"",null,null,null,null,null,null,null,null,null,null,null,null,null,null,null,null,null,null,null,null,null,null,null,null,null,null,null,null,null,null,null,null,null,null,null,null,null,null,null,null,null,null,null,null,null,null,null,null,null,null,"","","","","","",null,"",0,"","","",null,"",null,"",null,"",null,"",null,"",null,"",null,"","","","","",null,"","","",null,"",null,"",null,"",null,"",null,"",null,""]
[0,0,null,null,null,null,null,null,"",null,null,null,null,null,null,null,null,null,null,null,null,null,null,null,null,null,null,null,null,null,null,null,null,null,null,null,null,null,null,null,null,null,null,null,null,null,null,null,null,null,null,null,null,null,null,null,null,null,null,"","","","","","",null,"",0,"","","",null,"",null,"",null,"",null,"",null,"",null,"",null,"","","","","",null,"","","",null,"",null,"",null,"",null,"",null,"",null,""]
[0,0,null,null,null,null,null,null,"",null,null,null,null,null,null,null,null,null,null,null,null,null,null,null,null,null,null,null,null,null,null,null,null,null,null,null,null,null,null,null,null,null,null,null,null,null,null,null,null,null,null,null,null,null,null,null,null,null,null,"","","","","","",null,"",0,"","","",null,"",null,"",null,"",null,"",null,"",null,"",null,"","","","","",null,"","","",null,"",null,"",null,"",null,"",null,"",null,""]
[0,0,null,null,null,null,null,null,"",null,null,null,null,null,null,null,null,null,null,null,null,null,null,null,null,null,null,null,null,null,null,null,null,null,null,null,null,null,null,null,null,null,null,null,null,null,null,null,null,null,null,null,null,null,null,null,null,null,null,"","","","","","",null,"",0,"","","",null,"",null,"",null,"",null,"",null,"",null,"",null,"","","","","",null,"","","",null,"",null,"",null,"",null,"",null,"",null,""]
[0,0,null,null,null,null,null,null,"",null,null,null,null,null,null,null,null,null,null,null,null,null,null,null,null,null,null,null,null,null,null,null,null,null,null,null,null,null,null,null,null,null,null,null,null,null,null,null,null,null,null,null,null,null,null,null,null,null,null,"","","","","","",null,"",0,"","","",null,"",null,"",null,"",null,"",null,"",null,"",null,"","","","","",null,"","","",null,"",null,"",null,"",null,"",null,"",null,""]
[0,0,null,null,null,null,null,null,"",null,null,null,null,null,null,null,null,null,null,null,null,null,null,null,null,null,null,null,null,null,null,null,null,null,null,null,null,null,null,null,null,null,null,null,null,null,null,null,null,null,null,null,null,null,null,null,null,null,null,"","","","","","",null,"",0,"","","",null,"",null,"",null,"",null,"",null,"",null,"",null,"","","","","",null,"","","",null,"",null,"",null,"",null,"",null,"",null,""]
[0,0,null,null,null,null,null,null,"",null,null,null,null,null,null,null,null,null,null,null,null,null,null,null,null,null,null,null,null,null,null,null,null,null,null,null,null,null,null,null,null,null,null,null,null,null,null,null,null,null,null,null,null,null,null,null,null,null,null,"","","","","","",null,"",0,"","","",null,"",null,"",null,"",null,"",null,"",null,"",null,"","","","","",null,"","","",null,"",null,"",null,"",null,"",null,"",null,""]
[0,0,null,null,null,null,null,null,"",null,null,null,null,null,null,null,null,null,null,null,null,null,null,null,null,null,null,null,null,null,null,null,null,null,null,null,null,null,null,null,null,null,null,null,null,null,null,null,null,null,null,null,null,null,null,null,null,null,null,"","","","","","",null,"",0,"","","",null,"",null,"",null,"",null,"",null,"",null,"",null,"","","","","",null,"","","",null,"",null,"",null,"",null,"",null,"",null,""]
[0,0,null,null,null,null,null,null,"",null,null,null,null,null,null,null,null,null,null,null,null,null,null,null,null,null,null,null,null,null,null,null,null,null,null,null,null,null,null,null,null,null,null,null,null,null,null,null,null,null,null,null,null,null,null,null,null,null,null,"","","","","","",null,"",0,"","","",null,"",null,"",null,"",null,"",null,"",null,"",null,"","","","","",null,"","","",null,"",null,"",null,"",null,"",null,"",null,""]
[0,0,null,null,null,null,null,null,"",null,null,null,null,null,null,null,null,null,null,null,null,null,null,null,null,null,null,null,null,null,null,null,null,null,null,null,null,null,null,null,null,null,null,null,null,null,null,null,null,null,null,null,null,null,null,null,null,null,null,"","","","","","",null,"",0,"","","",null,"",null,"",null,"",null,"",null,"",null,"",null,"","","","","",null,"","","",null,"",null,"",null,"",null,"",null,"",null,""]
[0,0,null,null,null,null,null,null,"",null,null,null,null,null,null,null,null,null,null,null,null,null,null,null,null,null,null,null,null,null,null,null,null,null,null,null,null,null,null,null,null,null,null,null,null,null,null,null,null,null,null,null,null,null,null,null,null,null,null,"","","","","","",null,"",0,"","","",null,"",null,"",null,"",null,"",null,"",null,"",null,"","","","","",null,"","","",null,"",null,"",null,"",null,"",null,"",null,""]
[0,0,null,null,null,null,null,null,"",null,null,null,null,null,null,null,null,null,null,null,null,null,null,null,null,null,null,null,null,null,null,null,null,null,null,null,null,null,null,null,null,null,null,null,null,null,null,null,null,null,null,null,null,null,null,null,null,null,null,"","","","","","",null,"",0,"","","",null,"",null,"",null,"",null,"",null,"",null,"",null,"","","","","",null,"","","",null,"",null,"",null,"",null,"",null,"",null,""]
[0,0,null,null,null,null,null,null,"",null,null,null,null,null,null,null,null,null,null,null,null,null,null,null,null,null,null,null,null,null,null,null,null,null,null,null,null,null,null,null,null,null,null,null,null,null,null,null,null,null,null,null,null,null,null,null,null,null,null,"","","","","","",null,"",0,"","","",null,"",null,"",null,"",null,"",null,"",null,"",null,"","","","","",null,"","","",null,"",null,"",null,"",null,"",null,"",null,""]
[0,0,null,null,null,null,null,null,"",null,null,null,null,null,null,null,null,null,null,null,null,null,null,null,null,null,null,null,null,null,null,null,null,null,null,null,null,null,null,null,null,null,null,null,null,null,null,null,null,null,null,null,null,null,null,null,null,null,null,"","","","","","",null,"",0,"","","",null,"",null,"",null,"",null,"",null,"",null,"",null,"","","","","",null,"","","",null,"",null,"",null,"",null,"",null,"",null,""]
[0,0,null,null,null,null,null,null,"",null,null,null,null,null,null,null,null,null,null,null,null,null,null,null,null,null,null,null,null,null,null,null,null,null,null,null,null,null,null,null,null,null,null,null,null,null,null,null,null,null,null,null,null,null,null,null,null,null,null,"","","","","","",null,"",0,"","","",null,"",null,"",null,"",null,"",null,"",null,"",null,"","","","","",null,"","","",null,"",null,"",null,"",null,"",null,"",null,""]
[0,0,null,null,null,null,null,null,"",null,null,null,null,null,null,null,null,null,null,null,null,null,null,null,null,null,null,null,null,null,null,null,null,null,null,null,null,null,null,null,null,null,null,null,null,null,null,null,null,null,null,null,null,null,null,null,null,null,null,"","","","","","",null,"",0,"","","",null,"",null,"",null,"",null,"",null,"",null,"",null,"","","","","",null,"","","",null,"",null,"",null,"",null,"",null,"",null,""]
[0,0,null,null,null,null,null,null,"",null,null,null,null,null,null,null,null,null,null,null,null,null,null,null,null,null,null,null,null,null,null,null,null,null,null,null,null,null,null,null,null,null,null,null,null,null,null,null,null,null,null,null,null,null,null,null,null,null,null,"","","","","","",null,"",0,"","","",null,"",null,"",null,"",null,"",null,"",null,"",null,"","","","","",null,"","","",null,"",null,"",null,"",null,"",null,"",null,""]
[0,0,null,null,null,null,null,null,"",null,null,null,null,null,null,null,null,null,null,null,null,null,null,null,null,null,null,null,null,null,null,null,null,null,null,null,null,null,null,null,null,null,null,null,null,null,null,null,null,null,null,null,null,null,null,null,null,null,null,"","","","","","",null,"",0,"","","",null,"",null,"",null,"",null,"",null,"",null,"",null,"","","","","",null,"","","",null,"",null,"",null,"",null,"",null,"",null,""]
[0,0,null,null,null,null,null,null,"",null,null,null,null,null,null,null,null,null,null,null,null,null,null,null,null,null,null,null,null,null,null,null,null,null,null,null,null,null,null,null,null,null,null,null,null,null,null,null,null,null,null,null,null,null,null,null,null,null,null,"","","","","","",null,"",0,"","","",null,"",null,"",null,"",null,"",null,"",null,"",null,"","","","","",null,"","","",null,"",null,"",null,"",null,"",null,"",null,""]
[0,0,null,null,null,null,null,null,"",null,null,null,null,null,null,null,null,null,null,null,null,null,null,null,null,null,null,null,null,null,null,null,null,null,null,null,null,null,null,null,null,null,null,null,null,null,null,null,null,null,null,null,null,null,null,null,null,null,null,"","","","","","",null,"",0,"","","",null,"",null,"",null,"",null,"",null,"",null,"",null,"","","","","",null,"","","",null,"",null,"",null,"",null,"",null,"",null,""]
[{"$f":"$G$2","v":0},{"$f":"$G$3","v":0},null,null,null,null,null,null,{"$f":"IFERROR(VLOOKUP(F43,choix_categorie,2,FALSE),\"\")","v":""},null,null,null,null,null,null,null,null,null,null,null,null,null,null,null,null,null,null,null,null,null,null,null,null,null,null,null,null,null,null,null,null,null,null,null,null,null,null,null,null,null,null,null,null,null,null,null,null,null,null,"","","","","","",null,"",0,"","","",null,"",null,"",null,"",null,"",null,"",null,"",null,"","","","","",null,"","","",null,"",null,"",null,"",null,"",null,"",null,""]
[0,0,null,null,null,null,null,null,"",null,null,null,null,null,null,null,null,null,null,null,null,null,null,null,null,null,null,null,null,null,null,null,null,null,null,null,null,null,null,null,null,null,null,null,null,null,null,null,null,null,null,null,null,null,null,null,null,null,null,"","","","","","",null,"",0,"","","",null,"",null,"",null,"",null,"",null,"",null,"",null,"","","","","",null,"","","",null,"",null,"",null,"",null,"",null,"",null,""]
[0,0,null,null,null,null,null,null,"",null,null,null,null,null,null,null,null,null,null,null,null,null,null,null,null,null,null,null,null,null,null,null,null,null,null,null,null,null,null,null,null,null,null,null,null,null,null,null,null,null,null,null,null,null,null,null,null,null,null,"","","","","","",null,"",0,"","","",null,"",null,"",null,"",null,"",null,"",null,"",null,"","","","","",null,"","","",null,"",null,"",null,"",null,"",null,"",null,""]
[0,0,null,null,null,null,null,null,"",null,null,null,null,null,null,null,null,null,null,null,null,null,null,null,null,null,null,null,null,null,null,null,null,null,null,null,null,null,null,null,null,null,null,null,null,null,null,null,null,null,null,null,null,null,null,null,null,null,null,"","","","","","",null,"",0,"","","",null,"",null,"",null,"",null,"",null,"",null,"",null,"","","","","",null,"","","",null,"",null,"",null,"",null,"",null,"",null,""]
[0,0,null,null,null,null,null,null,"",null,null,null,null,null,null,null,null,null,null,null,null,null,null,null,null,null,null,null,null,null,null,null,null,null,null,null,null,null,null,null,null,null,null,null,null,null,null,null,null,null,null,null,null,null,null,null,null,null,null,"","","","","","",null,"",0,"","","",null,"",null,"",null,"",null,"",null,"",null,"",null,"","","","","",null,"","","",null,"",null,"",null,"",null,"",null,"",null,""]
[0,0,null,null,null,null,null,null,"",null,null,null,null,null,null,null,null,null,null,null,null,null,null,null,null,null,null,null,null,null,null,null,null,null,null,null,null,null,null,null,null,null,null,null,null,null,null,null,null,null,null,null,null,null,null,null,null,null,null,"","","","","","",null,"",0,"","","",null,"",null,"",null,"",null,"",null,"",null,"",null,"","","","","",null,"","","",null,"",null,"",null,"",null,"",null,"",null,""]
[0,0,null,null,null,null,null,null,"",null,null,null,null,null,null,null,null,null,null,null,null,null,null,null,null,null,null,null,null,null,null,null,null,null,null,null,null,null,null,null,null,null,null,null,null,null,null,null,null,null,null,null,null,null,null,null,null,null,null,"","","","","","",null,"",0,"","","",null,"",null,"",null,"",null,"",null,"",null,"",null,"","","","","",null,"","","",null,"",null,"",null,"",null,"",null,"",null,""]
[0,0,null,null,null,null,null,null,"",null,null,null,null,null,null,null,null,null,null,null,null,null,null,null,null,null,null,null,null,null,null,null,null,null,null,null,null,null,null,null,null,null,null,null,null,null,null,null,null,null,null,null,null,null,null,null,null,null,null,"","","","","","",null,"",0,"","","",null,"",null,"",null,"",null,"",null,"",null,"",null,"","","","","",null,"","","",null,"",null,"",null,"",null,"",null,"",null,""]
[0,0,null,null,null,null,null,null,"",null,null,null,null,null,null,null,null,null,null,null,null,null,null,null,null,null,null,null,null,null,null,null,null,null,null,null,null,null,null,null,null,null,null,null,null,null,null,null,null,null,null,null,null,null,null,null,null,null,null,"","","","","","",null,"",0,"","","",null,"",null,"",null,"",null,"",null,"",null,"",null,"","","","","",null,"","","",null,"",null,"",null,"",null,"",null,"",null,""]
[0,0,null,null,null,null,null,null,"",null,null,null,null,null,null,null,null,null,null,null,null,null,null,null,null,null,null,null,null,null,null,null,null,null,null,null,null,null,null,null,null,null,null,null,null,null,null,null,null,null,null,null,null,null,null,null,null,null,null,"","","","","","",null,"",0,"","","",null,"",null,"",null,"",null,"",null,"",null,"",null,"","","","","",null,"","","",null,"",null,"",null,"",null,"",null,"",null,""]
[0,0,null,null,null,null,null,null,"",null,null,null,null,null,null,null,null,null,null,null,null,null,null,null,null,null,null,null,null,null,null,null,null,null,null,null,null,null,null,null,null,null,null,null,null,null,null,null,null,null,null,null,null,null,null,null,null,null,null,"","","","","","",null,"",0,"","","",null,"",null,"",null,"",null,"",null,"",null,"",null,"","","","","",null,"","","",null,"",null,"",null,"",null,"",null,"",null,""]
[0,0,null,null,null,null,null,null,"",null,null,null,null,null,null,null,null,null,null,null,null,null,null,null,null,null,null,null,null,null,null,null,null,null,null,null,null,null,null,null,null,null,null,null,null,null,null,null,null,null,null,null,null,null,null,null,null,null,null,"","","","","","",null,"",0,"","","",null,"",null,"",null,"",null,"",null,"",null,"",null,"","","","","",null,"","","",null,"",null,"",null,"",null,"",null,"",null,""]
[0,0,null,null,null,null,null,null,"",null,null,null,null,null,null,null,null,null,null,null,null,null,null,null,null,null,null,null,null,null,null,null,null,null,null,null,null,null,null,null,null,null,null,null,null,null,null,null,null,null,null,null,null,null,null,null,null,null,null,"","","","","","",null,"",0,"","","",null,"",null,"",null,"",null,"",null,"",null,"",null,"","","","","",null,"","","",null,"",null,"",null,"",null,"",null,"",null,""]
[0,0,null,null,null,null,null,null,"",null,null,null,null,null,null,null,null,null,null,null,null,null,null,null,null,null,null,null,null,null,null,null,null,null,null,null,null,null,null,null,null,null,null,null,null,null,null,null,null,null,null,null,null,null,null,null,null,null,null,"","","","","","",null,"",0,"","","",null,"",null,"",null,"",null,"",null,"",null,"",null,"","","","","",null,"","","",null,"",null,"",null,"",null,"",null,"",null,""]
[0,0,null,null,null,null,null,null,"",null,null,null,null,null,null,null,null,null,null,null,null,null,null,null,null,null,null,null,null,null,null,null,null,null,null,null,null,null,null,null,null,null,null,null,null,null,null,null,null,null,null,null,null,null,null,null,null,null,null,"","","","","","",null,"",0,"","","",null,"",null,"",null,"",null,"",null,"",null,"",null,"","","","","",null,"","","",null,"",null,"",null,"",null,"",null,"",null,""]
[0,0,null,null,null,null,null,null,"",null,null,null,null,null,null,null,null,null,null,null,null,null,null,null,null,null,null,null,null,null,null,null,null,null,null,null,null,null,null,null,null,null,null,null,null,null,null,null,null,null,null,null,null,null,null,null,null,null,null,"","","","","","",null,"",0,"","","",null,"",null,"",null,"",null,"",null,"",null,"",null,"","","","","",null,"","","",null,"",null,"",null,"",null,"",null,"",null,""]
[0,0,null,null,null,null,null,null,"",null,null,null,null,null,null,null,null,null,null,null,null,null,null,null,null,null,null,null,null,null,null,null,null,null,null,null,null,null,null,null,null,null,null,null,null,null,null,null,null,null,null,null,null,null,null,null,null,null,null,"","","","","","",null,"",0,"","","",null,"",null,"",null,"",null,"",null,"",null,"",null,"","","","","",null,"","","",null,"",null,"",null,"",null,"",null,"",null,""]
[0,0,null,null,null,null,null,null,"",null,null,null,null,null,null,null,null,null,null,null,null,null,null,null,null,null,null,null,null,null,null,null,null,null,null,null,null,null,null,null,null,null,null,null,null,null,null,null,null,null,null,null,null,null,null,null,null,null,null,"","","","","","",null,"",0,"","","",null,"",null,"",null,"",null,"",null,"",null,"",null,"","","","","",null,"","","",null,"",null,"",null,"",null,"",null,"",null,""]
[0,0,null,null,null,null,null,null,"",null,null,null,null,null,null,null,null,null,null,null,null,null,null,null,null,null,null,null,null,null,null,null,null,null,null,null,null,null,null,null,null,null,null,null,null,null,null,null,null,null,null,null,null,null,null,null,null,null,null,"","","","","","",null,"",0,"","","",null,"",null,"",null,"",null,"",null,"",null,"",null,"","","","","",null,"","","",null,"",null,"",null,"",null,"",null,"",null,""]
[0,0,null,null,null,null,null,null,"",null,null,null,null,null,null,null,null,null,null,null,null,null,null,null,null,null,null,null,null,null,null,null,null,null,null,null,null,null,null,null,null,null,null,null,null,null,null,null,null,null,null,null,null,null,null,null,null,null,null,"","","","","","",null,"",0,"","","",null,"",null,"",null,"",null,"",null,"",null,"",null,"","","","","",null,"","","",null,"",null,"",null,"",null,"",null,"",null,""]
[0,0,null,null,null,null,null,null,"",null,null,null,null,null,null,null,null,null,null,null,null,null,null,null,null,null,null,null,null,null,null,null,null,null,null,null,null,null,null,null,null,null,null,null,null,null,null,null,null,null,null,null,null,null,null,null,null,null,null,"","","","","","",null,"",0,"","","",null,"",null,"",null,"",null,"",null,"",null,"",null,"","","","","",null,"","","",null,"",null,"",null,"",null,"",null,"",null,""]
[0,0,null,null,null,null,null,null,"",null,null,null,null,null,null,null,null,null,null,null,null,null,null,null,null,null,null,null,null,null,null,null,null,null,null,null,null,null,null,null,null,null,null,null,null,null,null,null,null,null,null,null,null,null,null,null,null,null,null,"","","","","","",null,"",0,"","","",null,"",null,"",null,"",null,"",null,"",null,"",null,"","","","","",null,"","","",null,"",null,"",null,"",null,"",null,"",null,""]
[0,0,null,null,null,null,null,null,"",null,null,null,null,null,null,null,null,null,null,null,null,null,null,null,null,null,null,null,null,null,null,null,null,null,null,null,null,null,null,null,null,null,null,null,null,null,null,null,null,null,null,null,null,null,null,null,null,null,null,"","","","","","",null,"",0,"","","",null,"",null,"",null,"",null,"",null,"",null,"",null,"","","","","",null,"","","",null,"",null,"",null,"",null,"",null,"",null,""]
[0,0,null,null,null,null,null,null,"",null,null,null,null,null,null,null,null,null,null,null,null,null,null,null,null,null,null,null,null,null,null,null,null,null,null,null,null,null,null,null,null,null,null,null,null,null,null,null,null,null,null,null,null,null,null,null,null,null,null,"","","","","","",null,"",0,"","","",null,"",null,"",null,"",null,"",null,"",null,"",null,"","","","","",null,"","","",null,"",null,"",null,"",null,"",null,"",null,""]
[0,0,null,null,null,null,null,null,"",null,null,null,null,null,null,null,null,null,null,null,null,null,null,null,null,null,null,null,null,null,null,null,null,null,null,null,null,null,null,null,null,null,null,null,null,null,null,null,null,null,null,null,null,null,null,null,null,null,null,"","","","","","",null,"",0,"","","",null,"",null,"",null,"",null,"",null,"",null,"",null,"","","","","",null,"","","",null,"",null,"",null,"",null,"",null,"",null,""]

{"sheet":"DATA-INFO","index":2,"n_rows":101,"n_cols":20,"rows_kept":101,"cut":false,"hidden":true,"merged":[]}
[null,"Grade",null,"Age",null,"Poids",null,"Club",null,"NAISSANCE","Catégorie",null,"SEXE","POIDS","CATE","compil","Catégorie","CODE",null,{"$f":"TODAY()","v":"2023-02-17"}]
[null,"-",null,"-",null,"_",null,"_",null,1918,"VETERAN",null,"F",null,"C",{"$f":"M2&O2&N2","v":"FC"},"Pas connu"]
[null,"BC",null,"POUSSIN",null,"Moins de 47 kg",null,"Ajac",null,1919,"VETERAN",null,"F",20,"C","FC20","Moins de 47 kg","31"]
[null,"BC 1",null,"PUPILLE",null,"Moins de 48 kg",null,"Bert",null,1920,"VETERAN",null,"F",46,"C","FC46","Moins de 47 kg","31"]
[null,"BC 2",null,"BENJAMIN",null,"Moins de 50 kg",null,"Boul",null,1921,"VETERAN",null,"F",47,"C","FC47","Moins de 54 kg","35"]
[null,"BC 3",null,"MINIME",null,"Moins de 52 kg",null,"Brie",null,1922,"VETERAN",null,"F",54,"C","FC54","Moins de 61 kg","35"]
[null,"BF 1",null,"CADET",null,"Moins de 53 kg",null,"Buss",null,1923,"VETERAN",null,"F",61,"C","FC61","61 kg et plus","36"]
[null,"BF 2",null,"JUNIOR",null,"Moins de 54 kg",null,"Chev",null,1924,"VETERAN",null,"F",99,"C","FC99","61 kg et plus","36"]
[null,"BF 3",null,"SENIOR",null,"Moins de 55 kg",null,"Crua",null,1925,"VETERAN",null,"F",null,"J","FJ","Pas connu"]
[null,"CB",null,"VETERAN",null,"Moins de 57 kg",null,"Emer",null,1926,"VETERAN",null,"F",20,"J","FJ20","Moins de 48 kg","32"]
[null,"CB 1",null,"Tous",null,"Moins de 59 kg",null,"Lesi",null,1927,"VETERAN",null,"F",47,"J","FJ47","Moins de 48 kg","32"]
[null,"CB 2",null,null,null,"Moins de 60 kg",null,"Lina",null,1928,"VETERAN",null,"F",48,"J","FJ48","Moins de 53 kg","34"]
[null,"CB 3",null,null,null,"Moins de 61 kg",null,"Mars",null,1929,"VETERAN",null,"F",53,"J","FJ53","Moins de 59 kg","38"]
[null,"CB J",null,null,null,"Moins de 63 kg",null,"Mart",null,1930,"VETERAN",null,"F",59,"J","FJ59","Moins de 66 kg"]
[null,"CJ 1",null,null,null,"Moins de 67 kg",null,"Nois",null,1931,"VETERAN",null,"F",66,"J","FJ66","66 kg et plus","39"]
[null,"CJ 2",null,null,null,"Moins de 68 kg",null,"Ozoi",null,1932,"VETERAN",null,"F",99,"J","FJ99","66 kg et plus","39"]
[null,"CJ 3",null,null,null,"Moins de 70 kg",null,"Prec",null,1933,"VETERAN",null,"F",null,"M","FM","Pas connu"]
[null,"CJ 4",null,null,null,"Moins de 75 kg",null,"Rois",null,1934,"VETERAN",null,"F",20,"M","FM20","Moins de 35 kg","21"]
[null,"CR 1",null,null,null,"Moins de 76 kg",null,"Vars",null,1935,"VETERAN",null,"F",34,"M","FM34","Moins de 35 kg","21"]
[null,"Toutes",null,null,null,"Moins de 84 kg",null,"Tous",null,1936,"VETERAN",null,"F",35,"M","FM35","Moins de 40 kg","21"]
[null,null,null,null,null,"54 kg et plus",null,null,null,1937,"VETERAN",null,"F",40,"M","FM40","Moins de 45 kg","23"]
[null,null,null,null,null,"59 kg et plus",null,null,null,1938,"VETERAN",null,"F",45,"M","FM45","Moins de 50 kg","25"]
[null,null,null,null,null,"68 kg et plus",null,null,null,1939,"VETERAN",null,"F",50,"M","FM50","Moins de 55 kg","27"]
[null,null,null,null,null,"70 kg et plus",null,null,null,1940,"VETERAN",null,"F",55,"M","FM55","55 kg et plus","28"]
[null,null,null,null,null,"76 kg et plus",null,null,null,1941,"VETERAN",null,"F",99,"M","FM99","55 kg et plus","28"]
[null,null,null,null,null,"84 kg et plus",null,null,null,1942,"VETERAN",null,"F",null,"S","FS","Pas connu"]
[null,null,null,null,null,"Tous",null,null,null,1943,"VETERAN",null,"F",20,"S","FS20","Moins de 50 kg","33"]
[null,null,null,null,null,null,null,null,null,1944,"VETERAN",null,"F",49,"S","FS49","Moins de 50 kg","33"]
[null,null,null,null,null,null,null,null,null,1945,"VETERAN",null,"F",50,"S","FS50","Moins de 55 kg","37"]
[null,null,null,null,null,null,null,null,null,1946,"VETERAN",null,"F",55,"S","FS55","Moins de 61 kg","40"]
[null,null,null,null,null,null,null,null,null,1947,"VETERAN",null,"F",61,"S","FS61","Moins de 68 kg","41"]
[null,null,null,null,null,null,null,null,null,1948,"VETERAN",null,"F",68,"S","FS68","68 kg et plus","42"]
[null,null,null,null,null,null,null,null,null,1949,"VETERAN",null,"F",99,"S","FS99","68 kg et plus","42"]
[null,null,null,null,null,null,null,null,null,1950,"VETERAN",null,"F",null,"V","FV","Pas connu"]
[null,null,null,null,null,null,null,null,null,1951,"VETERAN",null,"F",20,"V","FV20","Moins de 50 kg","33"]
[null,null,null,null,null,null,null,null,null,1952,"VETERAN",null,"F",49,"V","FV49","Moins de 50 kg","33"]
[null,null,null,null,null,null,null,null,null,1953,"VETERAN",null,"F",50,"V","FV50","Moins de 55 kg","37"]
[null,null,null,null,null,null,null,null,null,1954,"VETERAN",null,"F",55,"V","FV55","Moins de 61 kg","40"]
[null,null,null,null,null,null,null,null,null,1955,"VETERAN",null,"F",61,"V","FV61","Moins de 68 kg","41"]
[null,null,null,null,null,null,null,null,null,1956,"VETERAN",null,"F",68,"V","FV68","68 kg et plus","42"]
[null,null,null,null,null,null,null,null,null,1957,"VETERAN",null,"F",99,"V","FV99","68 kg et plus","42"]
[null,null,null,null,null,null,null,null,null,1958,"VETERAN",null,"M",null,"C","MC","Pas connu"]
[null,null,null,null,null,null,null,null,null,1959,"VETERAN",null,"M",20,"C","MC20","Moins de 52 kg","01"]
[null,null,null,null,null,null,null,null,null,1960,"VETERAN",null,"M",51,"C","MC51","Moins de 52 kg","01"]
[null,null,null,null,null,null,null,null,null,1961,"VETERAN",null,"M",52,"C","MC52","Moins de 57 kg","03"]
[null,null,null,null,null,null,null,null,null,1962,"VETERAN",null,"M",57,"C","MC57","Moins de 63 kg","06"]
[null,null,null,null,null,null,null,null,null,1963,"VETERAN",null,"M",63,"C","MC63","Moins de 70 kg","09"]
[null,null,null,null,null,null,null,null,null,1964,"VETERAN",null,"M",70,"C","MC70","70 kg et plus","10"]
[null,null,null,null,null,null,null,null,null,1965,"VETERAN",null,"M",99,"C","MC99","70 kg et plus","10"]
[null,null,null,null,null,null,null,null,null,1966,"VETERAN",null,"M",null,"J","MJ","Pas connu"]
[null,null,null,null,null,null,null,null,null,1967,"VETERAN",null,"M",20,"J","MJ20","Moins de 55 kg","02"]
[null,null,null,null,null,null,null,null,null,1968,"VETERAN",null,"M",54,"J","MJ54","Moins de 55 kg","02"]
[null,null,null,null,null,null,null,null,null,1969,"VETERAN",null,"M",55,"J","MJ55","Moins de 61 kg","05"]
[null,null,null,null,null,null,null,null,null,1970,"VETERAN",null,"M",61,"J","MJ61","Moins de 68 kg","08"]
[null,null,null,null,null,null,null,null,null,1971,"VETERAN",null,"M",68,"J","MJ68","Moins de 76 kg","12"]
[null,null,null,null,null,null,null,null,null,1972,"VETERAN",null,"M",76,"J","MJ76","76 kg et plus","13"]
[null,null,null,null,null,null,null,null,null,1973,"VETERAN",null,"M",99,"J","MJ99","76 kg et plus","13"]
[null,null,null,null,null,null,null,null,null,1974,"VETERAN",null,"M",null,"M","MM","Pas connu"]
[null,null,null,null,null,null,null,null,null,1975,"VETERAN",null,"M",20,"M","MM20","Moins de 35 kg","04"]
[null,null,null,null,null,null,null,null,null,1976,"VETERAN",null,"M",34,"M","MM34","Moins de 35 kg","04"]
[null,null,null,null,null,null,null,null,null,1977,"VETERAN",null,"M",35,"M","MM35","Moins de 40 kg","05"]
[null,null,null,null,null,null,null,null,null,1978,"VETERAN",null,"M",40,"M","MM40","Moins de 45 kg","07"]
[null,null,null,null,null,null,null,null,null,1979,"VETERAN",null,"M",45,"M","MM45","Moins de 50 kg","09"]
[null,null,null,null,null,null,null,null,null,1980,"VETERAN",null,"M",50,"M","MM50","Moins de 55 kg","11"]
[null,null,null,null,null,null,null,null,null,1981,"VETERAN",null,"M",55,"M","MM55","Moins de 60 kg","13"]
[null,null,null,null,null,null,null,null,null,1982,"VETERAN",null,"M",60,"M",{"$f":"M66&O66&N66","v":"MM60"},"Moins de 65 kg","14"]
[null,null,null,null,null,null,null,null,null,1983,"VETERAN",null,"M",65,"M","MM65","65 kg et plus","15"]
[null,null,null,null,null,null,null,null,null,1984,"VETERAN",null,"M",99,"M","MM99","65 kg et plus","15"]
[null,null,null,null,null,null,null,null,null,1985,"VETERAN",null,"M",null,"S","MS","Pas connu"]
[null,null,null,null,null,null,null,null,null,1986,"VETERAN",null,"M",20,"S","MS20","Moins de 60 kg","04"]
[null,null,null,null,null,null,null,null,null,1987,"VETERAN",null,"M",59,"S","MS59","Moins de 60 kg","04"]
[null,null,null,null,null,null,null,null,null,1988,"SENIOR",null,"M",60,"S","MS60","Moins de 67 kg","07"]
[null,null,null,null,null,null,null,null,null,1989,"SENIOR",null,"M",67,"S","MS67","Moins de 75 kg","11"]
[null,null,null,null,null,null,null,null,null,1990,"SENIOR",null,"M",75,"S","MS75","Moins de 84 kg","14"]
[null,null,null,null,null,null,null,null,null,1991,"SENIOR",null,"M",84,"S","MS84","84 kg et plus","15"]
[null,null,null,null,null,null,null,null,null,1992,"SENIOR",null,"M",99,"S","MS99","84 kg et plus","15"]
[null,null,null,null,null,null,null,null,null,1993,"SENIOR",null,"M",null,"V","MV","Pas connu"]
[null,null,null,null,null,null,null,null,null,1994,"SENIOR",null,"M",20,"V","MV20","Moins de 60 kg","04"]
[null,null,null,null,null,null,null,null,null,1995,"SENIOR",null,"M",59,"V","MV59","Moins de 60 kg","04"]
[null,null,null,null,null,null,null,null,null,1996,"SENIOR",null,"M",60,"V","MV60","Moins de 67 kg","07"]
[null,null,null,null,null,null,null,null,null,1997,"SENIOR",null,"M",67,"V","MV67","Moins de 75 kg","11"]
[null,null,null,null,null,null,null,null,null,1998,"SENIOR",null,"M",75,"V","MV75","Moins de 84 kg","14"]
[null,null,null,null,null,null,null,null,null,1999,"SENIOR",null,"M",84,"V","MV84","84 kg et plus","15"]
[null,null,null,null,null,null,null,null,null,2000,"SENIOR",null,"M",99,"V","MV99","84 kg et plus","15"]
[null,null,null,null,null,null,null,null,null,2001,"SENIOR"]
[null,null,null,null,null,null,null,null,null,2002,"SENIOR"]
[null,null,null,null,null,null,null,null,null,2003,"SENIOR"]
[null,null,null,null,null,null,null,null,null,2004,"SENIOR"]
[null,null,null,null,null,null,null,null,null,2005,"JUNIOR"]
[null,null,null,null,null,null,null,null,null,2006,"JUNIOR"]
[null,null,null,null,null,null,null,null,null,2007,"CADET"]
[null,null,null,null,null,null,null,null,null,2008,"CADET"]
[null,null,null,null,null,null,null,null,null,2009,"MINIME"]
[null,null,null,null,null,null,null,null,null,2010,"MINIME"]
[null,null,null,null,null,null,null,null,null,2011,"BENJAMIN"]
[null,null,null,null,null,null,null,null,null,2012,"BENJAMIN"]
[null,null,null,null,null,null,null,null,null,2013,"PUPILLE"]
[null,null,null,null,null,null,null,null,null,2014,"PUPILLE"]
[null,null,null,null,null,null,null,null,null,2015,"POUSSIN"]
[null,null,null,null,null,null,null,null,null,2016,"POUSSIN"]
[null,null,null,null,null,null,null,null,null,2017,"MPOUSSIN"]